Cogmind - Beta 15 @@@ ROGUE MODE // 2025.10.16 @ 21:25:12 Player: Rentaro Result: Destroyed by S-10 Pest with Light Assault Rifle Performance ------------- Evolutions (0) 0 Regions Visited (1) 200 Robots Destroyed (18) 90 Value Destroyed (351) 351 Prototype IDs (0) 0 Alien Tech Used (0) 0 Bonus (0) 0 TOTAL SCORE: 641 Bonus ------- None Cogmind --------- Core Integrity 0/250 Matter 246/300 Energy 250/250 System Corruption 0% Temperature Cool (0) Movement Rolling (100) Location -10/Materials Parts ------- > --- POWER (1) -------- Ion Engine > --- PROPULSION (2) --- Compact Wheel Compact Wheel > --- UTILITY (2) ------ Structural Scanner Signal Interpreter > --- WEAPON (2) ------- Small Laser Grenade Launcher > --- INVENTORY (5) ---- Light Ion Engine Wheel Wheel Sensor Array Sensor Array Peak State ------------ > --- POWER ------------ Ion Engine > --- PROPULSION ------- Compact Wheel Compact Wheel > --- UTILITY ---------- Sensor Array Signal Interpreter > --- WEAPON ----------- Small Laser Grenade Launcher > --- INVENTORY -------- Light Ion Engine Wheel Wheel Sensor Array [Rating: 7] Favorites ----------- Power Ion Engine Engine Ion Engine Propulsion Compact Wheel Wheel Compact Wheel Utility Sensor Array Device Sensor Array Processor Signal Interpreter Weapon Light Assault Rifle Energy Gun Small Laser Ballistic Gun Light Assault Rifle Launcher Grenade Launcher Build | -11 -10 ------- Run | Yrd Mat Slots Evolved . | . . Power . | . . Propulsion . | . . Utility . | . . Weapon . | . . Parts Attached 17 | 5 12 Power 3 | 1 2 Engine 3 | 1 2 Core . | . . Reactor . | . . Propulsion 4 | 2 2 Treads . | . . Leg . | . . Wheel 4 | 2 2 Hover . | . . Flight . | . . Utility 5 | . 5 Device 4 | . 4 Storage . | . . Processor 1 | . 1 Hackware . | . . Protection . | . . Artifact . | . . Weapon 5 | 2 3 Energy Gun 2 | . 2 Energy Cannon . | . . Ballistic Gun 2 | 2 . Ballistic Cannon . | . . Launcher 1 | . 1 Special Weapon . | . . Impact Weapon . | . . Slashing Weapon . | . . Piercing Weapon . | . . Special Melee Weapon . | . . Unidentified Prototypes . | . . Parts Lost 8 | . 8 Power 1 | . 1 Propulsion 2 | . 2 Utility 2 | . 2 Weapon 3 | . 3 Highest Loss Streak 4 | . 4 To Critical Strikes . | . . Average Backups 2 | . 2 Power . | . 1 Propulsion . | . . Utility 1 | . 1 Weapon . | . . Tool/Special . | . . Unused Backups 4 | . 4 Power 1 | . 1 Propulsion 2 | . 2 Utility 1 | . 1 Weapon . | . . Tool/Special . | . . Average Slot Usage (%) 68 | . 68 Engine 13 | . 13 Wheel 19 | . 19 Device 8 | . 8 Processor 2 | . 2 Energy Gun 7 | . 7 Ballistic Gun 12 | . 12 Launcher 3 | . 3 Peak Build Rating 7 | 5 7 Average Rating 4 | 3 4 On Entrance 2 | . 5 Naked Turns . | . . Heaviest Build 10 | 5 10 Greatest Support 32 | 32 32 Greatest Overweight (x) 2 | . 2 Average Overweight (x) . | . . Largest Inventory Capacity 5 | 5 5 Average Capacity 5 | 5 5 Most Carried 5 | 1 5 Average Carried 2 | . 2 Final Capacity 5 | 5 5 Final Carried 5 | 1 5 Class Distribution -------------------- 76% | Mutant 23% | Scavenger-Mutant Dominant Class ---------------- Mutant | -10/Materials Resources | -11 -10 ----------- Run | Yrd Mat Matter Collected 424 | 196 228 Remotely . | . . Salvage Created 541 | . 541 Parts 44 | . 44 Haulers Intercepted 1 | . 1 Recyclers Shooed 1 | . 1 Parts Field Recycled . | . . Retrieved Matter . | . . Parts Self-Destructed . | . . Prevented . | . . Kills | -11 -10 ------- Run | Yrd Mat Combat Hostiles Destroyed 10 | . 10 Guns 9 | . 9 AOE 1 | . 1 Classes Destroyed 7 | . 7 Builder 4 | . 4 Hauler 1 | . 1 Recycler 1 | . 1 Operator 1 | . 1 Watcher 1 | . 1 Swarmer 3 | . 3 Grunt 7 | . 7 Best Kill Streak 4 | . 4 Combat Bots Only 3 | . 3 Max Kills in Single Turn 1 | . 1 Gunslinging . | . . Exploded 1 | . 1 Melee . | . . Uniques/NPCs Destroyed . | . . Combat | -11 -10 -------- Run | Yrd Mat Hostile Shots Fired 93 | . 93 Missed 26 | . 26 Hits 67 | . 67 Projectile 67 | . 67 Damage Taken 726 | . 726 Core 255 | . 255 Absorbed by Shields . | . . Core Remaining (%) 100 | 100 . Volleys Fired 93 | . 93 Largest 2 | . 2 Hottest 70 | . 70 Shots Fired 134 | . 134 Gun 130 | . 130 Cannon . | . . Launcher 4 | . 4 Special . | . . Kinetic 95 | . 95 Thermal 35 | . 35 Explosive 4 | . 4 Electromagnetic . | . . Robot Hit Streak 8 | . 8 Robot Miss Streak 4 | . 4 Penetration Max . | . . Secondary Targets . | . . Shots Hit Robots 80 | . 80 Core Hits 38 | . 38 Critical Kills . | . . Critical Parts Destroyed . | . . Critical Strikes . | . . Melee Attacks . | . . Impact . | . . Slashing . | . . Piercing . | . . Sneak Attacks . | . . Combat Hostiles . | . . Follow-up Attacks . | . . Damage Inflicted 806 | . 806 Guns 703 | . 703 Cannons . | . . Explosions 103 | . 103 Melee . | . . Ramming . | . . Kinetic 401 | . 401 Thermal 302 | . 302 Explosive 103 | . 103 Electromagnetic . | . . Impact . | . . Slashing . | . . Piercing . | . . Highest Corruption . | . . Average Corruption . | . . Corruption Purged . | . . Corruption Blocked . | . . Overload Shots . | . . Overflow Damage . | . . Projectiles . | . . Explosions . | . . Melee . | . . Knockbacks . | . . Impact . | . . Kinetic . | . . Secondary . | . . Self-Inflicted Damage 26 | . 26 Shots 2 | . 2 Rammed . | . . Targets Rammed . | . . Kicked . | . . Crushed . | . . Highest Temperature 36 | . 36 Average Temperature 17 | . 17 Received Heat Transfer 303 | . 303 Siege Activations . | . . Martial Activations . | . . Shielding Activations . | . . Robots Disrupted . | . . Combat Hostiles . | . . Robots Corrupted . | . . Combat Hostiles . | . . Parts Fried . | . . Impact Corruptions . | . . Robots Melted . | . . Combat Hostiles . | . . Parts Melted . | . . Heat Transferred 675 | . 675 Parts Sabotaged . | . . Parts Stolen . | . . Parts Stripped . | . . Power Chain Reactions . | . . Alert | -11 -10 ------- Run | Yrd Mat Maximum Alert Level . | . . Low Security (%) 100 | 100 100 Level 1 . | . . Level 2 . | . . Level 3 . | . . Level 4 . | . . Level 5 . | . . High Security . | . . Max Security . | . . Peak Influence 80 | . 80 Initial . | . . Average 41 | . 44 Influence Increases 339 | . 339 Destroy 0b10 Robot/C 200 | . 200 Destroy 0b10 Robot/NC 40 | . 40 Destroy Leader 34 | . 34 Disable Machine 15 | . 15 Destroy Structure 20 | . 20 Partial Spotted 15 | . 15 Lose Combat Pursuer 15 | . 15 Influence Decreases 316 | . 316 Time Decay 236 | . 236 Lost Part 80 | . 80 Squads Dispatched 2 | . 2 Investigation . | . . Extermination . | . . Reinforcement 2 | . 2 Assault . | . . Garrison . | . . Intercept . | . . Searches Triggered . | . . Construction Impeded . | . . Haulers Reinforced . | . . Active Scanning Responses . | . . Cargo Convoy Interrupts . | . . Stealth | -11 -10 --------- Run | Yrd Mat Distress Signals 1 | . 1 Communications Jammed . | . . Distress Signals . | . . Times Spotted 17 | . 17 Peak Tracking Total 3 | . 3 Tactical Retreats 1 | . 1 Traps | -11 -10 ------- Run | Yrd Mat Traps Triggered . | . . Indirectly . | . . Trap Hack Attempts . | . . Triggered . | . . Disarmed . | . . Reprogrammed . | . . Reused . | . . Traps Extracted . | . . Installed . | . . Triggered . | . . Machines | -11 -10 ---------- Run | Yrd Mat Machines Disabled 1 | . 1 Max in Single Turn 1 | . 1 Machines Repaired . | . . Machines Dismantled . | . . Machines Sabotaged . | . . Overloaded Fab Kills . | . . Hacking | -11 -10 --------- Run | Yrd Mat Machines Accessed 1 | . 1 Terminals 1 | . 1 Fabricators . | . . Repair Stations . | . . Recycling Units . | . . Scanalyzers . | . . Garrison Access . | . . Total Hacks 1 | . 1 Successful . | . . Failed 1 | . 1 Catastrophic . | . . Database Lockouts . | . . Manual 1 | . 1 Terminals 1 | . 1 Fabricators . | . . Repair Stations . | . . Recycling Units . | . . Scanalyzers . | . . Garrison Access . | . . Terminal Hacks . | . . Fabricator Hacks . | . . Repair Station Hacks . | . . Recycling Unit Hacks . | . . Scanalyzer . | . . Garrison Access Hacks . | . . Unauthorized Hacks . | . . Terminals . | . . Fabricators . | . . Repair Stations . | . . Recycling Units . | . . Scanalyzers . | . . Garrison Access . | . . Data Cores Recovered . | . . Used . | . . Hacking Detections . | . . Full Trace Events . | . . Feedback Events . | . . Feedback Blocked . | . . Robot Schematics Acquired . | . . Robots Built . | . . Authchips . | . . Time . | . . Total Robot Build Rating . | . . Part Schematics Acquired . | . . Parts Built . | . . Authchips . | . . Time . | . . Total Part Build Rating . | . . Parts Repaired . | . . Time . | . . Parts Recycled . | . . Recycled Matter . | . . Retrieved Matter . | . . Retrieved Components . | . . Parts Scanalyzed . | . . Part Schematics Acquired . | . . Parts Damaged . | . . Bothacking | -11 -10 ------------ Run | Yrd Mat Used RIF Installer . | . . Robots Hacked . | . . Non-combat . | . . Combat . | . . Robot Hacks Applied . | . . Relay Couplers Released . | . . Fabnet Peak Effective % . | . . Robots Rewired . | . . Allies Hacked . | . . Hacks Repelled . | . . Allies | -11 -10 -------- Run | Yrd Mat Total Allies . | . . Largest Group . | . . Highest-Rated Group . | . . Highest-Rated Ally . | . . Total Orders . | . . Ally Attacks . | . . Total Damage . | . . Kills . | . . Allies Corrupted . | . . Allies Melted . | . . Intel | -11 -10 ------- Run | Yrd Mat Active Infowar (turns) 211 | . 211 Sensors 147 | . 147 Structural 64 | . 64 Robot Analysis Total . | . . Derelict Logs Recovered . | . . Drone Launches . | . . Drone Recoveries . | . . Exploration | -11 -10 ------------- Run | Yrd Mat Turns Passed 560 | 36 524 Spaces Moved 300 | 29 271 Core 65 | 3 62 Treads . | . . Legs . | . . Wheels 235 | 26 209 Hover . | . . Flight . | . . Fastest Speed 50 | 50 50 Average Speed 106 | 94 107 Slowest Speed 150 | 100 150 Overloaded Moves . | . . Propulsion Burnouts . | . . Robots Hopped . | . . Potential Cave-ins . | . . Cave-ins Triggered . | . . Exploration Rate (%) 28 | 3 54 Regions Visited 1 Branch Regions . Pre-discovered Areas . | . . Known Exits Taken . | . . Unknown Exits Taken 1 | 1 . Scrap Searched . | . . Spaces Dug . | . . Terrain Destroyed 20 | . 20 Melee . | . . Projectile . | . . AOE 20 | . 20 Terrain Rammed . | . . Walls Destroyed . | . . Machines Disabled . | . . Actions | -11 -10 --------- Run | Yrd Mat Total 418 | 34 384 Wait 2 | . 2 Move 299 | 28 271 Hop . | . . Pick Up 5 | 1 4 Fast Attach 15 | 5 10 Attach 1 | . 1 Detach 1 | . 1 Swap 1 | . 1 Drop 1 | . 1 Fire 93 | . 93 Melee . | . . Ram . | . . Kick . | . . Crush . | . . Escape Stasis . | . . Rewire . | . . Trap . | . . Miscellaneous . | . . Route ------- -11/Scrapyard -10/Materials (discovered 1 exit: [*Mat]) History --------- Turn | Location | Event 12 | -11/Scrapyard | Discovered new exit (range 15) 37 | -11/Scrapyard | Entered Materials 188 | -10/Materials | Discovered new exit (range 14) 231 | -10/Materials | Core integrity fell below 50% 267 | -10/Materials | Lost 4 parts (1p2n1w) 314 | -10/Materials | Build established: Mutant 360 | -10/Materials | Core integrity fell below 20% 382 | -10/Materials | Lost 3 parts (2u1w) 561 | -10/Materials | Destroyed by S-10 Pest with Light Assault Rifle Last Messages --------------- 00470_ Sensor Array tumbles out of TF Node. 00470_ Signal Interpreter tumbles out of TF Node. 00481_ The unstable cave ceiling collapses. 00482_ Acquired Signal Interpreter. 00484_ The unstable cave ceiling collapses. 00484_ U-05 Engineer builds a Door. 00488_ U-05 Engineer builds a Wall. 00492_ U-05 Engineer destroyed. 00493_ Acquired 12 matter. 00497_ Acquired Structural Scanner. 00501_ K-01 Serf collects debris. 00501_ R-06 Scavenger collects Aluminum Leg. 00505_ R-06 Scavenger collects Terrain Scan Processor. 00505_ U-05 Engineer lays Concrete. 00534_ Connecting with Terminal... 00534_ Current location identified: Materials 00534_ Connecting with Terminal... 00534_ T-07 Excavator is excavating. Map ----- +----------------------------------------------------+ | | | | | | | ????????????????????????????????????????????? | | ????????????????????????????????????????????? | | ????????????????????????????????????????????? | | ????????????????????????????????????????????? | | ????????????????????????????????????????????? | | ????????????????????????????????????????????? | | ????????????????????????????????????????????? | | ????????????????????????????????????????????? | | ????????????????????????????????????????????? | | ????????????????????????????????????????????? | | ??????????????????????????????????? ??????? | | ??????????????????????????????????# ??????? | | ??????????????????????????????????# ??????? | | ?????????????????????????????????## #?????? | | ???????????????????########??????# ?????? | | ???????????????????########??????# ?????? | | ??????????????????? ]**[[##??????# ?????? | | ?????????????????????**[[##??????# [ ?????? | | ????????#######????? ##??????? ?????? | | ????????#######?????## #####????# #??#### | | ????????## ? #### #####????#^ #? | | ????????## ####^ # ##????# ^ #? """ | | ????????## s @ ##????# # """ | | ????????## s#### # ##????# # """ | | ???????? # ? #### t#####????# + | | ???????? # ??????## ##???????# # """ | | ???????? # ????????## ##???????### # """ | | ???????? # ?????????## ##?????????# #? """ | | ???????? # ?### ###????????#%# | | ???? ####+######## #########??# ##?#### | | ????##+#+## ##### ########??# ####### | | ????## "" # #??# #### | | ????## T + #??#% ## | | ????## # #?## %+ | | ????####/## ##### # #### ## | | ???? ## ###### ### #### ##### | | ?????????"## # ? # ### # # ## | | ??????????## ???? # ####+#### # "" | | ??????????## ???? # ! # "" | | ??????????## ???? # + "" | | ??????????## ???? # % # | | ??????????## ????? ########### ## "" | | ??????????## ????? ############## %## "" | | ??????????## ???????????? # # %## "" | | ??????????## ???????????? #""" # ## | | ?????????? # ???????????? #""" = # #+## | | ?????????? # ????????????? #""" # # | +----------------------------------------------------+ Best States ------------- Heat Dissipation 35 Energy Generation 10 Energy Capacity 250 Matter Stores 300 Matter Capacity 300 Sight Range 16 Robot Scan Range 14 Terrain Scan Density 10 Evasion (%) 50 Item Schematics ----------------- None Robot Schematics ------------------ None Fabricated ------------ Nothing Repaired ---------- Nothing Alien Tech Used ----------------- None Achievements -------------- None Challenges ------------ None Game ------ Seed ColdArcRifle Manual? 0 Play Time 00:08:36 Cumulative 55.7 hours Start 2025.10.16 @ 21:18:27 End 2025.10.16 @ 21:25:12 Sessions 1 Manual Loads 0 Difficulty Rogue Special Mode None Game No. 26 Rogue 26 Adventurer 0 Explorer 0 Win Type - Total 1 Types 0/0/0/1/0/0/0/0/0/0 Lore% 18 Gallery% 30 Achievement% 38 Wizard Run 0 Options --------- Layout 1 ASCII 0 Keyboard 0 Movement Mouse Keybinds 0 Fullscreen 1 Font 24/Terminus Map View 50x35 Zoom Use 0% Tactical HUD 1 Map Filters NONE Filters NONE Steam 1 RUN: a2e66a84-65e6-4fc3-bf4a-fce2a41168c8